bitfinex-derivatives/quotes_SOLF0:USTF0_20250609
["timestamp","ask_amount","ask_price","bid_price","bid_amount"]
[1749476827760,5.92259076,153.98,153.94,0.04365089]
[1749476827954,6.4918,153.95,153.94,0.04365089]
[1749476828162,5.92259076,153.98,153.94,0.04365089]
[1749476828658,6.4918,153.95,153.94,0.04365089]
[1749476829359,0.04155277,153.98,153.94,0.04365089]
[1749476829753,6.4917,153.96,153.94,0.04365089]
[1749476830361,6.4917,153.96,153.94,6.53565089]
[1749476831462,0.04155277,153.98,153.97,6.491]
[1749476835064,5.04053065,154.02,154.01,6.4893]
[1749476835263,5.05896859,154.04,154.01,6.4893]
[1749476835556,11.54716859,154.04,154.01,6.4893]
[1749476835762,418.66352334,154.08,154.02,6.4886]
[1749476835763,48.8644805,154.08,154.02,6.4886]
[1749476835964,6.4879,154.05,154.02,6.4886]
[1749476836166,0.0442035,154.05,154.02,6.53352447]
[1749476836365,0.0442035,154.05,154.02,0.04492447]
[1749476837265,0.0442035,154.05,154.02,6.53362447]
[1749476837466,0.0442035,154.05,154.02,0.04492447]
[1749476837864,6.4883,154.04,154.02,0.04492447]
[1749476838063,0.0442035,154.05,154.02,0.04492447]
[1749476838563,6.4884,154.03,154.02,0.04492447]
[1749476843270,0.0442035,154.05,154.02,0.04492447]
[1749476843765,6.4884,154.04,154.02,0.04492447]
[1749476844171,0.0442035,154.05,154.02,0.04492447]
[1749476844373,6.4883,154.04,154.02,0.04492447]
[1749476845161,6.4883,154.04,154.02,6.53372447]
[1749476845367,6.4883,154.04,154.02,0.04492447]
[1749476845965,0.0442035,154.05,154.03,5.88103799]
[1749476846370,0.0442035,154.05,154.04,6.488]
[1749476849781,7.76556403,154.1,154.03,8.06763799]
[1749476850071,7.76556403,154.1,154.08,5.88103799]
[1749476850270,7.76556403,154.1,154.08,40.88103799]
[1749476850476,7.76556403,154.1,154.09,6.4859]
[1749476851372,7.76556403,154.1,154.09,5.88103799]
[1749476851968,7.76556403,154.1,154.09,12.36693799]
[1749476852364,7.76556403,154.1,154.08,35.04306896]
[1749476852576,14.25116403,154.1,154.08,35.04306896]
[1749476853075,7.76556403,154.1,154.08,35.04306896]
[1749476853269,14.25116403,154.1,154.08,35.04306896]
[1749476854973,14.25116403,154.1,154.08,41.52936896]
[1749476855579,14.25116403,154.1,154.08,35.04306896]
[1749476855881,6.4859,154.09,154.08,0.04306896]
[1749476856085,18.06620202,154.1,154.05,34.98]
[1749476856782,5.88103799,154.08,154.02,34.98]
[1749476856980,0.04839719,154.07,154.03,0.0459367]
[1749476857175,6.488,154.04,154.03,0.0459367]
[1749476857485,5.88103799,154.04,153.99,34.98]
[1749476857672,6.4887,154.03,153.99,34.98]
[1749476857877,5.88103799,154.04,153.99,34.98]
[1749476858274,6.4893,154.01,154.0,0.04762976]
[1749476859686,6.491,153.98,153.96,408.76]
[1749476859989,2.1648,154.03,153.96,408.76]
[1749476860582,2.1648,154.03,153.97,6.491]
[1749476860782,6.4899,154.0,153.97,6.491]
[1749476861586,6.4894,154.01,153.97,6.491]
[1749476861788,0.04851976,154.02,153.98,5.88103799]
[1749476862584,0.04851976,154.02,154.0,5.88103799]
[1749476862784,0.04851976,154.02,154.01,6.4893]
[1749476863187,0.04851976,154.02,154.01,12.37033799]
[1749476864386,6.4868,154.07,154.04,6.4878]
[1749476864588,15.87660202,154.1,154.03,5.88103799]
[1749476864791,15.87660202,154.1,154.04,35.0]
[1749476864987,6.4866,154.08,154.04,35.0]
[1749476865285,6.4866,154.08,154.05,6.4873]
[1749476865481,6.52766729,154.08,154.05,0.04166798]
[1749476865692,6.52766729,154.08,154.05,6.52906798]
[1749476865892,0.04106729,154.08,154.05,0.04166798]
[1749476866093,0.04106729,154.08,154.06,6.4871]
[1749476867090,0.04106729,154.08,154.07,6.4868]
[1749476867590,0.04106729,154.08,154.07,12.36783799]
[1749476869304,0.04106729,154.08,154.06,6.487]
[1749476869496,0.04106729,154.08,154.05,5.92270597]
[1749476870694,0.04106729,154.08,154.06,6.4869]
[1749476871103,0.04106729,154.08,154.05,5.92270597]
[1749476871299,6.52746729,154.08,154.06,35.0]
[1749476871501,0.04106729,154.08,154.06,35.0]
[1749476872299,0.04106729,154.08,154.07,6.4868]
[1749476873003,0.04106729,154.08,154.07,12.36783799]
[1749476873506,0.04106729,154.08,154.07,5.88103799]
[1749476873705,0.04106729,154.08,154.06,41.487]
[1749476873909,0.04106729,154.08,154.06,35.0]
[1749476874608,0.04106729,154.08,154.07,6.4868]
[1749476874810,0.04106729,154.08,154.07,12.36783799]
[1749476875607,7.76556403,154.1,154.09,6.4859]
[1749476876110,7.76556403,154.1,154.09,12.36693799]
[1749476877412,7.76556403,154.1,154.08,6.4861]
[1749476877614,7.76556403,154.1,154.08,12.36713799]
[1749476877811,7.76556403,154.1,154.08,5.88103799]
[1749476878012,7.76556403,154.1,154.09,6.4859]
[1749476879911,7.76556403,154.1,154.05,0.04166798]
[1749476880304,15.81430202,154.1,154.05,0.04166798]
[1749476880512,6.4867,154.08,154.05,0.04166798]
[1749476880909,18.03930202,154.1,154.05,0.04166798]
[1749476881313,20.17520202,154.1,154.05,0.04166798]
[1749476881513,5.88103799,154.08,154.05,0.04166798]
[1749476881713,6.4872,154.06,154.05,0.04166798]
[1749476882109,6.5330705,154.07,154.05,0.04166798]
[1749476882315,0.0460705,154.07,154.05,0.04166798]
[1749476882909,0.0460705,154.07,154.06,6.4872]
[1749476883308,0.0460705,154.07,154.05,0.04166798]
[1749476884013,0.0460705,154.07,154.06,6.4872]
[1749476884605,7.76556403,154.1,154.09,6.4859]
[1749476884815,7.76556403,154.1,154.08,34.94]
[1749476885414,6.4866,154.08,154.05,34.98166798]
[1749476885619,6.52949276,154.08,154.05,34.98166798]
[1749476886120,0.04289276,154.08,154.05,41.46906798]
[1749476886716,0.04289276,154.08,154.05,34.98166798]
[1749476887417,0.04289276,154.08,154.06,6.4869]
[1749476888516,0.04289276,154.08,154.07,6.4868]
[1749476888908,0.04289276,154.08,154.07,12.36783799]
[1749476891822,0.04289276,154.08,154.05,34.98166798]
[1749476892417,6.4872,154.06,154.05,34.98166798]
[1749476892614,6.4872,154.06,154.05,0.04166798]
[1749476896725,8.6477,154.07,154.05,0.04166798]
[1749476896921,0.04289276,154.08,154.05,0.04166798]
[1749476897127,0.04289276,154.08,154.05,5.92270597]
[1749476897528,6.52939276,154.08,154.05,12.41010597]
[1749476897916,0.04289276,154.08,154.05,5.92270597]
[1749476898120,6.52939276,154.08,154.05,12.40990597]
[1749476898320,0.04289276,154.08,154.05,5.92270597]
[1749476898725,0.04289276,154.08,154.06,34.96]
[1749476899225,0.04289276,154.08,154.07,5.88103799]
[1749476899525,0.04289276,154.08,154.06,34.96]
[1749476900720,0.04289276,154.08,154.05,0.04166798]
[1749476901323,2.32939276,154.08,154.05,0.04166798]
[1749476901725,6.4872,154.06,154.05,0.04166798]
[1749476905835,0.04289276,154.08,154.05,0.04166798]
[1749476906033,0.04289276,154.08,154.06,6.4869]
[1749476906234,0.04289276,154.08,154.05,5.92270597]
[1749476906435,0.04289276,154.08,154.07,5.88103799]
[1749476906633,0.04289276,154.08,154.07,47.44783799]
[1749476906936,6.4872,154.06,154.05,0.04166798]
[1749476907932,0.04766442,154.07,154.05,0.04166798]
[1749476908632,6.4872,154.06,154.05,0.04166798]
[1749476909037,11.78634285,154.06,154.05,0.04166798]
[1749476910929,6.4872,154.06,154.05,0.04166798]
[1749476911331,6.4896,154.01,153.98,35.08]
[1749476911530,17.03730043,154.05,153.98,35.08]
[1749476911727,5.29960962,154.04,153.98,35.08]
[1749476911929,11.73769081,154.05,153.98,35.08]
[1749476911930,6.4898,154.0,153.98,35.08]
[1749476912738,6.53454114,154.01,153.98,35.08]
[1749476913241,6.4898,154.0,153.98,35.08]
[1749476914838,6.53444114,154.01,153.98,35.08]
[1749476915338,6.53444114,154.01,153.98,41.5705]
[1749476915641,6.4898,154.0,153.98,35.08]
[1749476915933,6.53444114,154.01,153.98,35.08]
[1749476917140,6.53444114,154.01,153.98,41.5705]
[1749476917543,6.4898,154.0,153.98,35.08]
[1749476917930,0.04504114,154.01,153.98,35.08]
[1749476918640,6.4901,153.99,153.98,35.08]
[1749476920741,6.4905,153.98,153.97,0.04912643]
[1749476921138,6.4925,153.94,153.92,35.08]
[1749476922638,6.4925,153.94,153.92,41.5731]
[1749476922841,6.4925,153.94,153.92,35.08]
[1749476923642,6.54126554,153.95,153.92,35.08]
[1749476924144,6.54126554,153.95,153.92,41.5731]
[1749476925046,6.4923,153.94,153.92,41.5731]
[1749476925247,6.4923,153.94,153.92,35.08]
[1749476925548,0.04936554,153.95,153.92,35.08]
[1749476925744,6.54156554,153.95,153.92,41.5729]
[1749476925943,0.04936554,153.95,153.92,35.08]
[1749476926143,0.04936554,153.95,153.93,9.57709081]
[1749476926348,6.4899,154.0,153.93,11.67229081]
[1749476926544,6.4899,154.0,153.96,9.57709081]
[1749476926745,6.4899,154.0,153.97,35.08]
[1749476927342,6.4902,153.99,153.97,35.12210922]
[1749476927546,0.0416315,154.0,153.97,41.61310922]
[1749476927847,0.0416315,154.0,153.97,35.12210922]
[1749476928050,6.4902,153.99,153.97,35.12210922]
[1749476929644,0.0416315,154.0,153.97,35.12210922]
[1749476930139,0.0416315,154.0,153.99,6.4901]
[1749476930545,0.0416315,154.0,153.98,9.57709081]
[1749476931048,0.0416315,154.0,153.97,35.12210922]
[1749476931643,0.0416315,154.0,153.98,9.57709081]
[1749476931850,5.23019022,154.06,153.98,9.57709081]
[1749476932045,6.4869,154.07,154.04,6.488]
[1749476932840,6.52870925,154.07,154.04,6.53036034]
[1749476933037,0.04180925,154.07,154.04,0.04236034]
[1749476933647,6.4875,154.06,154.04,0.04236034]
[1749476934246,0.04180925,154.07,154.04,5.91717711]
[1749476934454,0.04180925,154.07,154.06,5.87481677]
[1749476935150,0.04180925,154.07,154.04,5.91717711]
[1749476935355,0.04180925,154.07,154.04,0.04236034]
[1749476935949,6.4874,154.06,154.04,0.04236034]
[1749476936151,0.04180925,154.07,154.04,0.04236034]
[1749476936651,6.52880925,154.07,154.04,6.53036034]
[1749476936852,0.04180925,154.07,154.04,0.04236034]
[1749476937944,6.4876,154.05,154.04,0.04236034]
[1749476938152,0.04180925,154.07,154.04,0.04236034]
[1749476939549,6.4872,154.06,154.04,0.04236034]
[1749476940053,0.04180925,154.07,154.04,0.04236034]
[1749476940254,6.4876,154.05,154.04,0.04236034]
[1749476940952,0.04180925,154.07,154.04,0.04236034]
[1749476941454,6.52880925,154.07,154.04,6.53016034]
[1749476941755,0.04180925,154.07,154.04,6.53016034]
[1749476941945,6.52870925,154.07,154.04,6.53016034]
[1749476942353,0.04180925,154.07,154.04,0.04236034]
[1749476942553,6.4876,154.05,154.04,0.04236034]
[1749476944358,6.4893,154.01,154.0,35.68]
[1749476944554,9.57169218,154.05,153.98,373.94]
[1749476944852,6.4904,153.99,153.97,42.1709]
[1749476945249,6.4904,153.99,153.97,35.68]
[1749476946357,6.4906,153.98,153.97,35.68]
[1749476946553,0.04663305,154.0,153.96,0.0487865]
[1749476946758,6.491,153.97,153.96,0.0487865]
[1749476947962,0.04663305,154.0,153.97,6.4907]
[1749476948260,0.04663305,154.0,153.96,0.0487865]
[1749476949257,6.491,153.97,153.96,0.0487865]
[1749476949655,0.04663305,154.0,153.96,0.0487865]
[1749476949861,6.4909,153.98,153.96,0.0487865]
[1749476950057,0.04663305,154.0,153.96,0.0487865]
[1749476950962,0.04663305,154.0,153.98,6.4903]
[1749476951262,0.04663305,154.0,153.98,42.1903]
[1749476951461,6.53633305,154.0,153.98,35.7]
[1749476951662,0.04663305,154.0,153.98,35.7]
[1749476952060,6.4901,153.99,153.98,35.7]
[1749476952557,6.53653305,154.0,153.98,35.7]
[1749476952763,0.04663305,154.0,153.98,35.7]
[1749476952968,0.04663305,154.0,153.96,0.0487865]
[1749476953155,6.491,153.97,153.96,0.0487865]
[1749476953665,6.4927,153.93,153.92,35.7]
[1749476954870,0.04420893,153.94,153.91,0.04948927]
[1749476955264,0.04420893,153.94,153.91,6.54278927]
[1749476955471,6.53670893,153.94,153.91,6.54278927]
[1749476956970,0.04420893,153.94,153.92,6.493]
[1749476957369,0.04420893,153.94,153.93,6.4927]
[1749476957667,36.54829218,154.04,153.93,45.27169218]
[1749476957867,4.3651,154.03,153.93,45.27169218]
[1749476958065,4.3651,154.03,153.95,6.4914]
[1749476958574,0.04509655,154.0,153.97,0.04870889]
[1749476959164,9.61678873,154.0,153.97,0.04870889]
[1749476959359,5.21670617,153.99,153.97,0.04870889]
[1749476959773,6.4906,153.98,153.97,0.04870889]
[1749476960374,6.4922,153.94,153.93,35.7]
[1749476960577,2.2475,153.97,153.9,409.52]
[1749476960766,2.2475,153.97,153.9,416.0138]
[1749476960961,6.4933,153.92,153.9,409.52]
[1749476961374,0.04830484,153.93,153.9,409.52]
[1749476961675,6.4934,153.92,153.9,409.52]
[1749476962668,6.4935,153.91,153.9,409.52]
[1749476963064,6.4935,153.91,153.89,0.04508767]
[1749476963674,6.4939,153.9,153.89,0.04508767]
[1749476966879,6.4932,153.92,153.89,0.04508767]
[1749476967066,0.04830484,153.93,153.89,0.04508767]
[1749476967665,0.04830484,153.93,153.89,6.53918767]
[1749476967870,6.4936,153.91,153.89,6.53918767]
[1749476968073,6.4936,153.91,153.89,0.04508767]
[1749476968777,0.04830484,153.93,153.9,6.4937]
[1749476969179,0.04830484,153.93,153.89,0.04508767]
[1749476969371,6.54110484,153.93,153.89,0.04508767]
[1749476969571,0.04830484,153.93,153.89,0.04508767]
[1749476970176,0.04830484,153.93,153.91,6.4933]
[1749476970378,0.04830484,153.93,153.89,0.04508767]
[1749476970979,0.04830484,153.93,153.91,6.4933]
[1749476971381,0.04830484,153.93,153.91,41.8733]
[1749476971577,0.04830484,153.93,153.92,6.4931]
[1749476972274,37.6143,154.01,153.95,6.4917]
[1749476972682,6.4909,153.98,153.95,6.4917]
[1749476972991,37.6143,154.01,153.96,6.4911]
[1749476973383,0.04115938,154.0,153.97,0.04984273]
[1749476973684,6.4906,153.98,153.97,0.04984273]
[1749476976688,6.4903,153.99,153.97,0.04984273]
[1749476977083,6.4903,153.99,153.97,6.54054273]
[1749476977285,6.4903,153.99,153.97,0.04984273]
[1749476977494,6.4906,153.98,153.97,0.04984273]
[1749476977680,0.04115938,154.0,153.97,0.04984273]
[1749476978184,6.4904,153.99,153.97,0.04984273]
[1749476979285,6.4906,153.98,153.97,0.04984273]
[1749476981490,6.4902,153.99,153.97,0.04984273]
[1749476982188,0.04115938,154.0,153.97,5.93013636]
[1749476982392,0.04115938,154.0,153.99,5.88029363]
[1749476982791,0.04115938,154.0,153.99,47.73039363]
[1749476983390,6.4874,154.06,154.03,6.4883]
[1749476983582,222.08728547,154.07,154.02,5.88029363]
[1749476983989,6.4883,154.04,154.02,5.88029363]
[1749476985297,6.4883,154.04,154.02,6.4888]
[1749476985497,6.4883,154.04,154.01,0.04592446]
[1749476985698,6.53093849,154.05,154.01,0.04592446]
[1749476985894,0.04323849,154.05,154.03,6.4884]
[1749476986093,0.04323849,154.05,154.03,41.8484]
[1749476987099,0.04323849,154.05,154.03,35.36]
[1749476987297,6.53093849,154.05,154.03,35.36]
[1749476988296,6.488,154.04,154.03,35.36]
[1749476988694,6.488,154.04,154.01,0.04592446]
[1749476988695,0.04323849,154.05,154.01,0.04592446]
[1749476989201,6.4881,154.04,154.01,6.53522446]
[1749476989398,6.4881,154.04,154.01,0.04592446]
[1749476989789,0.04323849,154.05,154.01,9.62094482]
[1749476990000,0.04323849,154.05,154.03,9.57502036]
[1749476990194,5.24574809,154.12,154.04,35.36]
[1749476990394,6.4861,154.09,154.05,6.4872]
[1749476990595,6.4861,154.09,154.04,35.36]
[1749476990899,6.4864,154.08,154.05,6.4874]
[1749476991099,6.4864,154.08,154.04,35.36]
[1749476991299,0.04700635,154.08,154.05,0.04728261]
[1749476991499,6.53350635,154.08,154.05,0.04728261]
[1749476992001,6.53350635,154.08,154.05,6.53468261]
[1749476992196,6.4868,154.07,154.05,0.04728261]
[1749476992501,0.04700635,154.08,154.05,6.53488261]
[1749476992802,6.53350635,154.08,154.05,6.53488261]
[1749476993300,6.53350635,154.08,154.06,6.4872]
[1749476993507,6.53350635,154.08,154.05,0.04728261]
[1749476993508,0.04700635,154.08,154.05,9.62230297]
[1749476994102,0.04700635,154.08,154.07,6.4868]
[1749476995903,0.04700635,154.08,154.06,6.487]
[1749476996099,0.04700635,154.08,154.05,11.84250297]
[1749476996606,0.04700635,154.08,154.05,9.62230297]
[1749476997006,0.04700635,154.08,154.06,6.487]
[1749476997300,0.04700635,154.08,154.05,9.62230297]
[1749476997507,0.04700635,154.08,154.06,6.487]
[1749476997701,0.04700635,154.08,154.05,9.62230297]
[1749476998096,6.53340635,154.08,154.06,6.4871]
[1749476998302,0.04700635,154.08,154.06,6.4871]
[1749476998509,0.04700635,154.08,154.05,9.62230297]
[1749476998707,6.53340635,154.08,154.05,16.10970297]
[1749476998905,0.04700635,154.08,154.05,9.62230297]
[1749476999308,0.04700635,154.08,154.06,6.487]
[1749477000208,0.04700635,154.08,154.07,6.4868]
[1749477000408,0.04700635,154.08,154.05,9.62230297]
[1749477000909,0.04700635,154.08,154.07,6.4868]
[1749477001111,0.04700635,154.08,154.05,9.62230297]
[1749477001409,0.04700635,154.08,154.07,6.4868]
[1749477005005,0.04700635,154.08,154.06,6.487]
[1749477005212,0.04700635,154.08,154.05,0.04728261]
[1749477005810,0.04700635,154.08,154.07,6.4868]
[1749477006514,0.04700635,154.08,154.07,16.06182036]
[1749477007313,0.04700635,154.08,154.07,12.35821278]
[1749477008009,0.04700635,154.08,154.06,41.5071]
[1749477008203,0.04700635,154.08,154.06,35.02]
[1749477008408,6.4868,154.07,154.06,35.02]
[1749477008612,0.04700635,154.08,154.05,0.04728261]
[1749477008811,8.04921278,154.07,154.05,0.04728261]
[1749477009013,8.04921278,154.07,154.0,41.5096]
[1749477009213,8.04921278,154.07,154.0,35.02]
[1749477009616,6.4883,154.04,154.01,6.4891]
[1749477010013,0.04808826,154.04,154.01,0.0459933]
[1749477012025,6.4887,154.03,154.01,0.0459933]
[1749477013113,6.4884,154.03,154.01,0.0459933]
[1749477013315,0.04808826,154.04,154.01,0.0459933]
[1749477013708,6.53638826,154.04,154.01,0.0459933]
[1749477013912,0.04808826,154.04,154.01,6.5350933]
[1749477014116,0.04808826,154.04,154.01,0.0459933]
[1749477014323,6.4887,154.03,154.01,0.0459933]
[1749477014828,6.53618826,154.04,154.01,0.0459933]
[1749477015316,0.04808826,154.04,154.01,0.0459933]
[1749477016020,6.4889,154.02,154.01,0.0459933]
[1749477016220,5.87141278,154.03,153.97,41.5108]
[1749477016634,6.49,154.0,153.97,41.5108]
[1749477017324,6.53680544,154.0,153.97,41.55737982]
[1749477017523,6.4902,153.99,153.97,35.06657982]
[1749477017724,0.04680544,154.0,153.97,35.06657982]
[1749477019326,0.04680544,154.0,153.97,40.9379926]
[1749477020026,6.53680544,154.0,153.97,47.4286926]
[1749477020523,6.4902,153.99,153.97,40.9379926]
[1749477020725,0.04680544,154.0,153.97,35.06657982]
[1749477021121,6.4906,153.98,153.97,35.06657982]
[1749477021530,6.4906,153.98,153.97,0.04657982]
[1749477022729,6.4903,153.99,153.97,0.04657982]
[1749477023522,9.58429429,153.98,153.9,37.3099]
[1749477023717,9.58429429,153.96,153.9,35.04]
[1749477023923,6.4933,153.92,153.9,35.04]
[1749477024122,2.1533,153.95,153.9,35.04]
[1749477024529,6.4935,153.91,153.9,35.04]
[1749477026121,6.4933,153.92,153.9,35.04]
[1749477026324,0.04540637,153.94,153.9,35.04]
[1749477026921,6.4927,153.93,153.9,41.5337]
[1749477027124,0.04540637,153.94,153.9,35.04]
[1749477027525,0.04540637,153.94,153.91,6.4934]
[1749477028330,6.53770637,153.94,153.91,6.4934]
[1749477028829,0.04540637,153.94,153.91,6.4934]
[1749477029029,6.53780637,153.94,153.91,6.4934]
[1749477029230,0.04540637,153.94,153.92,6.4928]
[1749477029433,0.04540637,153.94,153.9,44.62429429]
[1749477029925,4.3668,154.01,153.92,9.58429429]
[1749477030128,4.3668,154.01,153.94,9.58429429]
[1749477030331,6.4908,153.98,153.95,41.5315]
[1749477030526,4.3668,154.01,153.95,35.04]
[1749477030929,9.58429429,153.99,153.92,35.04]
[1749477031133,0.04841227,153.97,153.94,0.04652203]
[1749477031626,6.4918,153.95,153.94,0.04652203]
[1749477032522,0.04841227,153.97,153.94,0.04652203]
[1749477033426,6.4917,153.96,153.94,0.04652203]
[1749477035335,6.4918,153.95,153.94,0.04652203]
[1749477035733,0.04841227,153.97,153.94,0.04652203]
[1749477035933,6.4916,153.96,153.94,0.04652203]
[1749477036636,6.4918,153.95,153.94,0.04652203]
[1749477036833,0.04841227,153.97,153.94,0.04652203]
[1749477037032,0.04841227,153.97,153.94,6.53872203]
[1749477037233,0.04841227,153.97,153.94,0.04652203]
[1749477037634,6.4918,153.95,153.94,0.04652203]
[1749477039431,6.4937,153.91,153.89,35.04]
[1749477040137,6.4939,153.9,153.89,35.04]
[1749477040342,11.71209429,153.96,153.89,35.04]
[1749477040635,0.04686486,153.91,153.89,35.04]
[1749477040937,6.54076486,153.91,153.89,35.04]
[1749477041631,6.4939,153.9,153.89,35.04]
[1749477042130,6.4943,153.89,153.88,0.04480622]
[1749477044339,6.54046486,153.91,153.88,0.04480622]
[1749477044539,0.04686486,153.91,153.88,0.04480622]
[1749477046238,6.4943,153.89,153.88,0.04480622]
[1749477046639,0.04686486,153.91,153.88,0.04480622]
[1749477047237,6.4943,153.89,153.88,0.04480622]
[1749477052347,9.58429429,153.9,153.83,35.04]
[1749477052842,6.496,153.86,153.83,41.5368]
[1749477053040,35.04,153.92,153.83,35.04]
[1749477053241,0.04815817,153.9,153.86,0.03003124]
[1749477053633,0.04815817,153.9,153.87,35.06]
[1749477053839,0.04815817,153.9,153.87,40.94740507]
[1749477054243,0.04815817,153.9,153.89,6.4943]
[1749477058547,0.04815817,153.9,153.88,6.4947]
[1749477058749,0.04815817,153.9,153.87,35.06]
[1749477059254,0.04815817,153.9,153.87,44.65068251]
[1749477059552,0.04815817,153.9,153.89,6.4943]
[1749477060150,0.04815817,153.9,153.88,6.4946]
[1749477060357,0.04815817,153.9,153.87,35.06]
[1749477060754,0.04815817,153.9,153.89,6.4943]
[1749477061056,2.2309,153.99,153.89,9.59068251]
[1749477061256,6.4912,153.97,153.94,6.4919]
[1749477061651,48.95298251,154.01,153.93,35.02]
[1749477061845,6.4917,153.96,153.93,41.5125]
[1749477062045,0.04271099,153.96,153.93,0.0429554]
[1749477062353,6.4922,153.94,153.93,0.0429554]
[1749477063456,9.59068251,153.94,153.89,35.02]
[1749477063749,11.72528251,153.94,153.89,35.02]
[1749477063960,2.1346,153.94,153.89,41.5143]
[1749477064255,2.1346,153.94,153.89,35.02]
[1749477064455,6.4934,153.92,153.9,0.03523401]
[1749477064654,0.04853592,153.93,153.9,0.03523401]
[1749477065155,6.4935,153.92,153.9,0.03523401]
[1749477066257,6.4935,153.91,153.9,0.03523401]
[1749477070251,0.04853592,153.93,153.9,0.03523401]
[1749477071154,6.4935,153.91,153.9,0.03523401]
[1749477073360,5.22072009,153.92,153.86,35.02]
[1749477073756,6.4946,153.89,153.86,35.02]
[1749477073960,5.22072009,153.92,153.86,41.5154]
[1749477074161,5.22072009,153.92,153.86,35.02]
[1749477074362,6.495,153.88,153.86,35.02]
[1749477074850,6.4952,153.87,153.86,35.02]
[1749477075256,0.04836574,153.91,153.86,35.02]
[1749477075453,6.4952,153.88,153.86,35.02]
[1749477075957,0.04836574,153.91,153.86,35.02]
[1749477076962,6.4948,153.88,153.86,35.02]
[1749477077167,6.4948,153.88,153.86,41.5154]
[1749477077358,0.04836574,153.91,153.86,41.5154]
[1749477077556,6.4947,153.89,153.86,41.5154]
[1749477077862,0.04836574,153.91,153.86,35.02]
[1749477078267,6.4941,153.9,153.86,35.02]
[1749477078660,6.4941,153.9,153.87,6.495]
[1749477079167,6.4941,153.9,153.86,35.02]
[1749477079566,6.4941,153.9,153.87,6.4951]
[1749477079869,6.4941,153.9,153.86,35.02]
[1749477080062,6.4941,153.9,153.87,6.4949]
[1749477080459,6.4946,153.89,153.86,35.02]
[1749477080663,0.04836574,153.91,153.86,35.02]
[1749477080865,0.04836574,153.91,153.86,40.90828319]
[1749477081168,0.04836574,153.91,153.89,6.4941]
[1749477081671,6.54186574,153.91,153.89,6.4941]
[1749477082172,0.04836574,153.91,153.89,6.4941]
[1749477082374,0.04836574,153.91,153.9,6.4939]
[1749477082574,0.04836574,153.91,153.88,5.88828319]
[1749477083177,0.04836574,153.91,153.89,6.4941]
[1749477083569,0.04836574,153.91,153.88,5.88828319]
[1749477083774,7.99152525,153.97,153.9,5.88828319]
[1749477083969,5.22890854,153.96,153.92,5.88828319]
[1749477084271,6.4912,153.97,153.94,12.38048319]
[1749477084473,11.72010854,153.97,153.94,12.38048319]
[1749477084668,5.22890854,153.96,153.94,12.38048319]
[1749477085068,6.5339394,153.97,153.94,12.38048319]
[1749477085767,6.5339394,153.97,153.94,5.88828319]
[1749477086379,6.5339394,153.97,153.94,12.38028319]
[1749477086973,6.5339394,153.97,153.94,5.88828319]
[1749477086974,0.0427394,153.97,153.94,5.88828319]
[1749477087181,0.0427394,153.97,153.96,5.88828319]
[1749477087380,0.0427394,153.97,153.96,40.90828319]
[1749477087580,0.0427394,153.97,153.96,47.39968319]
[1749477088375,5.88922525,154.05,153.96,40.90828319]
[1749477088578,5.24342591,154.04,153.97,5.88828319]
[1749477088780,6.4912,153.97,153.95,35.0]
[1749477088975,5.88828319,154.0,153.95,35.0]
[1749477089179,5.24342591,153.99,153.95,35.0]
[1749477089377,5.28935472,153.99,153.95,35.04334075]
[1749477089980,6.4914,153.96,153.95,35.04334075]
[1749477090185,6.4914,153.96,153.95,0.04334075]
[1749477091283,6.4914,153.96,153.92,35.0]
[1749477091284,6.4927,153.93,153.92,35.0]
[1749477091485,5.24342591,153.97,153.89,41.4941]
[1749477091982,6.4934,153.92,153.89,41.4941]
[1749477092181,6.54245592,153.92,153.89,41.54186439]
[1749477092685,6.54245592,153.92,153.9,6.4939]
[1749477092884,6.54245592,153.92,153.89,35.04776439]
[1749477093277,6.54245592,153.92,153.89,41.54186439]
[1749477094476,6.54245592,153.92,153.89,35.04776439]
[1749477094477,6.4935,153.91,153.89,35.04776439]
[1749477095074,6.54235592,153.92,153.89,41.54206439]
[1749477095285,0.04905592,153.92,153.89,35.04776439]
[1749477096183,0.04905592,153.92,153.89,0.04776439]
[1749477096480,6.4935,153.91,153.89,0.04776439]
[1749477096682,0.04905592,153.92,153.89,0.04776439]
[1749477097685,6.4937,153.91,153.89,0.04776439]